fUSD/lending_fUSD_20260414
["ID","MTS","AMOUNT","RATE_DAILY","PERIOD"]
[420473637,1776127634960,300.0,9.7e-05,3]
[420473638,1776127637104,600.0,9.8e-05,3]
[420473639,1776127639676,900.0,9.9e-05,3]
[420473640,1776127641300,1200.0,0.0001,3]
[420473641,1776127687105,317.0,0.00010103,2]
[420473642,1776127747131,301.0,0.00010453,2]
[420473643,1776127795900,241.01170654,0.00010399,2]
[420473644,1776127801869,241.01170654,0.000104,2]
[420473645,1776127804592,7023.99805755,0.0001007,2]
[420473646,1776127804700,2192.98852937,0.0001007,2]
[420473647,1776127804746,2807.01147063,0.0001007,2]
[420473648,1776127804865,5000.0,0.0001007,2]
[420473649,1776127804942,2192.99852937,0.0001007,2]
[420473650,1776127804971,2807.00147063,0.0001007,2]
[420473651,1776127805137,5000.0,0.0001007,2]
[420473652,1776127806580,156.0,0.00010453,2]
[420473653,1776127807470,286.0,0.00010453,2]
[420473654,1776127807987,241.01170654,0.000104,2]
[420473656,1776127832341,-107760.65546533,0.000104,2]
[420473659,1776127832386,-330.63673467,0.000104,2]
[420473660,1776127832406,-941.9247,0.00010463,2]
[420473661,1776127832432,-302.0,0.00010463,2]
[420473662,1776127832448,-151.0,0.00010494,2]
[420473663,1776127832474,-300.0,0.00010498,2]
[420473664,1776127832485,-300.0,0.00010498,2]
[420473665,1776127832499,-1200.0,0.00010498,2]
[420473666,1776127832524,-1001.68188255,0.00010499,2]
[420473667,1776127832537,-150.0,0.00010499,2]
[420473668,1776127832564,-300.0,0.00010499,2]
[420473669,1776127832578,-500.0,0.00010499,2]
[420473670,1776127832599,-435.60069497,0.00010499,2]
[420473671,1776127832617,-500.0,0.00010499,2]
[420473672,1776127832642,-500.0,0.00010499,2]
[420473673,1776127832656,-500.0,0.00010499,2]
[420473674,1776127832671,-500.0,0.00010499,2]
[420473675,1776127832692,-500.0,0.00010499,2]
[420473677,1776127832701,-180.0,0.00010499,2]
[420473678,1776127832711,-500.0,0.00010499,2]
[420473679,1776127832732,-500.0,0.00010499,2]
[420473680,1776127832744,-500.0,0.00010499,2]
[420473681,1776127832754,-500.0,0.00010499,2]
[420473682,1776127832772,-265.47283654,0.00010499,2]
[420473683,1776127832784,-500.0,0.00010499,2]
[420473684,1776127832793,-305.97775805,0.00010499,2]
[420473685,1776127832804,-402.46164701,0.00010499,2]
[420473686,1776127832815,-157.22269792,0.00010499,2]
[420473687,1776127832829,-164.00512306,0.00010499,2]
[420473688,1776127832840,-1000.0,0.000105,2]
[420473689,1776127832851,-500.0,0.000105,2]
[420473690,1776127832861,-250.0,0.00010527,2]
[420473691,1776127832875,-205.5193075,0.00010553,2]
[420473692,1776127832885,-2656.49661773,0.00010563,2]
[420473693,1776127832920,-824.83,0.00010563,2]
[420473694,1776127832933,-2086.21568691,0.00010563,2]
[420473695,1776127833466,-348.50366075,0.00010563,2]
[420473696,1776127833483,-5533.0,0.00010563,2]
[420473697,1776127833499,-22714.49245721,0.00010563,2]
[420473698,1776127833516,-353.8945,0.00010563,2]
[420473699,1776127833565,-940.11642928,0.00010563,2]
[420473700,1776127833594,-130949.78866864,0.00010563,2]
[420473704,1776127838718,-812.50323552,0.00010563,2]
[420473705,1776127838739,-259.56920029,0.00010563,2]
[420473706,1776127838808,-453.00898369,0.00010563,2]
[420473707,1776127838879,-3216.5170958,0.00010563,2]
[420473708,1776127838907,-28860.72364648,0.00010563,2]
[420473709,1776127838925,-861.13527113,0.00010563,2]
[420473710,1776127838948,-640.93868497,0.00010563,2]
[420473711,1776127838984,-410.03200002,0.00010563,2]
[420473712,1776127838998,-654.6,0.00010563,2]
[420473713,1776127839015,-22353.76076004,0.00010563,2]
[420473714,1776127839033,-341.50517263,0.00010563,2]
[420473717,1776127841422,-534.0,0.00010563,2]
[420473718,1776127841438,-1281.00842565,0.00010563,2]
[420473722,1776127843191,-454.41213395,0.00010563,2]
[420473723,1776127843216,-1269.15222258,0.00010563,2]
[420473724,1776127843228,-1810.00289802,0.00010563,2]
[420473725,1776127843323,-414.78281653,0.00010563,2]
[420473869,1776127896222,192.0,0.00010002,2]
[420473870,1776127907782,195.8465225,0.00010074,2]
[420473871,1776127928108,322.0,0.00010103,2]
[420473872,1776127981197,10000.0,0.00010103,2]
[420473873,1776127989867,9175.63,9.894e-05,2]
[420473874,1776127990220,208.75,9.894e-05,2]
[420473875,1776127992441,306.0,0.00010103,3]
[420473876,1776128009333,10000.0,0.00010103,2]
[420473877,1776128014655,10000.0,0.00010103,2]
[420473879,1776128021101,10000.0,0.00010103,2]
[420473880,1776128047118,291.0,0.00010103,3]
[420473882,1776128142734,201.67793137,0.00010251,2]
[420473883,1776128164981,292.0,0.0001029,2]
[420473884,1776128166792,-700.0,0.000103,5]
[420473885,1776128227318,285.0,0.00010103,3]
[420473886,1776128285721,271.0,0.0001029,2]
[420473887,1776128346450,265.0,0.0001029,2]
[420473888,1776128404951,309.33359243,9.563e-05,2]
[420473889,1776128408126,252.0,0.0001029,2]
[420473890,1776128411507,156.0,0.0001029,2]
[420473891,1776128411557,211.18,9.807e-05,2]
[420473892,1776128467704,157.0,0.0001029,2]
[420473893,1776128467750,1600.0,9.732e-05,2]
[420473894,1776128532449,231.0,0.0001029,2]
[420473895,1776128539052,1503.0,0.000102,5]
[420473896,1776128557571,248.9,9.755e-05,2]
[420473897,1776128571139,-300.0,0.00010299,2]
[420473898,1776128571209,-299.0,0.00010299,2]
[420473899,1776128587000,-185.06824772,0.000103,2]
[420473900,1776128587071,-382.4214,0.000103,2]
[420473901,1776128587139,-219.8839,0.000103,2]
[420473902,1776128587188,-185.85432696,0.000103,2]
[420473903,1776128587222,-238.10536678,0.000103,2]
[420473904,1776128587553,220.0,0.00010299,2]
[420473905,1776128600151,2500.0,0.000103,2]
[420473906,1776128602006,-250.0,0.00010304,2]
[420473907,1776128617214,-1200.0,0.00010317,2]
[420473908,1776128617529,299.0,0.00010317,2]
[420473909,1776128631690,500.0,9.708e-05,2]
[420473910,1776128651751,4400.0761348,0.0001033,2]
[420473911,1776128724146,160.0,0.0001034,2]
[420473912,1776128732379,160.0,0.000103,2]
[420473913,1776128736104,2500.0,0.000103,2]
[420473914,1776128738635,160.0,0.000103,2]
[420473915,1776128771628,2619.9338652,0.0001033,2]
[420473916,1776128771656,313.45022468,0.0001033,2]
[420473917,1776128772821,-161.0,0.0001034,2]
[420473918,1776128772877,-209.0,0.0001034,2]
[420473919,1776128782749,158.7369112,0.0001033,2]
[420473920,1776128785445,160.0,0.000103,2]
[420473921,1776128789202,-202.852,0.0001035,2]
[420473922,1776128825404,188.0,0.00010363,2]
[420473923,1776128834349,-500.0,0.00010363,2]
[420473924,1776128834382,-159.0,0.00010383,2]
[420473925,1776128834418,-1200.0,0.00010383,2]
[420473926,1776128834469,-300.0,0.00010383,2]
[420473927,1776128837735,500.0,0.0001024,2]
[420473928,1776128881134,300.0,0.00010383,2]
[420473929,1776128882504,382.07801997,0.00010285,2]
[420473930,1776128886680,189.0,0.00010384,2]
[420473931,1776128899922,1955.58939324,0.0001033,2]
[420473932,1776128901673,2500.0,0.000103,2]
[420473933,1776128920851,158.73691118,0.0001033,2]
[420473934,1776128928589,4514.60567561,9.814e-05,2]
[420473935,1776128928621,459.47432439,9.814e-05,2]
[420473936,1776128946377,1874.78,4.858e-05,2]
[420473937,1776128946643,1874.78,5.113e-05,2]
[420473938,1776128946834,1874.78,5.369e-05,2]
[420473939,1776128947081,1874.78,5.625e-05,2]
[420473940,1776128947255,1874.78,5.88e-05,2]
[420473941,1776128947437,166.63567561,0.00010384,2]
[420473942,1776128947482,35.36432439,0.00010384,2]
[420473943,1776128947524,1874.78,6.136e-05,2]
[420473944,1776128947714,1874.78,6.392e-05,2]
[420473945,1776128947965,1874.78,6.647e-05,2]
[420473946,1776128949015,1874.78,6.903e-05,2]
[420473947,1776128949068,1874.78,7.159e-05,2]
[420473948,1776128949123,590.74567561,7.414e-05,2]
[420473949,1776128949156,1284.03432439,7.414e-05,2]
[420473950,1776128949217,1874.78,7.67e-05,2]
[420473951,1776128949260,252.0,0.00010383,2]
[420473952,1776128949389,1874.78,7.926e-05,2]
[420473953,1776128949506,1874.78,8.181e-05,2]
[420473954,1776128950104,1874.78,8.437e-05,2]
[420473955,1776128950180,964.85567561,8.693e-05,2]
[420473956,1776128950206,909.92432439,8.693e-05,2]
[420473957,1776128950261,1874.78,8.948e-05,2]
[420473958,1776128950383,1874.78,9.204e-05,2]
[420473959,1776128950612,1874.78,9.46e-05,2]
[420473960,1776128950821,1874.78,9.715e-05,2]
[420473961,1776128954388,1590.96567561,0.000103,2]
[420473962,1776128954427,10000.01,0.000103,2]
[420473963,1776128954453,10000.01,0.000103,2]
[420473964,1776128954498,10000.01,0.000103,2]
[420473965,1776128954555,10000.01,0.000103,2]
[420473966,1776128954622,10000.01,0.000103,2]
[420473983,1776128962224,67275.6,9.71e-05,2]
[420473984,1776129000587,5078.73,9.687e-05,2]
[420473985,1776129008027,161.0,0.00010103,2]
[420473986,1776129011290,192.0,0.00010103,2]
[420474029,1776129033285,-500.0,0.0001024,2]
[420474031,1776129033298,-160.51745018,0.00010258,2]
[420474033,1776129033317,-304.18692381,0.00010298,2]
[420474035,1776129033327,-391.04811818,0.00010298,2]
[420474037,1776129033339,-500.0,0.00010298,2]
[420474039,1776129033355,-500.0,0.00010298,2]
[420474041,1776129033367,-454.23578256,0.00010298,2]
[420474043,1776129033379,-22554.56920358,0.00010299,2]
[420474045,1776129033397,-8408.46727034,0.00010299,2]
[420474048,1776129033412,-665.72995843,0.00010299,2]
[420474050,1776129033438,-294.40797712,0.00010298,2]
[420474052,1776129033466,-205.59202288,0.00010298,2]
[420474054,1776129033476,-21553.67716586,0.00010299,2]
[420474055,1776129033492,-4447.32,0.00010299,2]
[420474056,1776129033609,-575.75,0.00010299,2]
[420474057,1776129033657,-500.0,0.00010298,2]
[420474058,1776129033667,-500.0,0.00010298,2]
[420474059,1776129033686,-6919.2964603,0.00010299,2]
[420474060,1776129033715,-2182.37961044,0.00010299,2]
[420474061,1776129033742,-2318.96831106,0.00010299,2]
[420474062,1776129033760,-356.90818223,0.00010298,2]
[420474063,1776129033778,-43.09181777,0.00010299,2]
[420474064,1776129033801,-642.29822088,0.00010299,2]
[420474065,1776129033814,-874.59964105,0.00010299,2]
[420474066,1776129033839,-436407.96439784,0.00010299,2]
[420474067,1776129033904,-39116.98253546,0.00010299,2]
[420474069,1776129038682,-2743.39820843,0.00010299,2]
[420474070,1776129038884,-1256.40417357,0.00010299,2]
[420474071,1776129038897,-31524.74727275,0.00010299,2]
[420474072,1776129038926,-1139.21132138,0.00010299,2]
[420474082,1776129041641,153.62804204,0.0001024,30]
[420474084,1776129041752,-500.0,0.00010298,2]
[420474086,1776129041773,-500.0,0.00010298,2]
[420474088,1776129041783,-500.0,0.00010298,2]
[420474089,1776129041809,-465.56174716,0.00010298,2]
[420474090,1776129041924,-34.43825284,0.00010298,2]
[420474091,1776129041937,-500.0,0.00010298,2]
[420474092,1776129041957,-500.0,0.00010298,2]
[420474093,1776129041967,-500.0,0.00010298,2]
[420474094,1776129041980,-300.0,0.00010298,2]
[420474095,1776129042000,-338.64583032,0.00010298,2]
[420474096,1776129042010,-500.0,0.00010298,2]
[420474097,1776129042039,-500.0,0.00010298,2]
[420474098,1776129042055,-500.0,0.00010298,2]
[420474099,1776129042066,-500.0,0.00010298,2]
[420474100,1776129042102,-500.0,0.00010298,2]
[420474101,1776129042116,-500.0,0.00010298,2]
[420474102,1776129042126,-500.0,0.00010298,2]
[420474103,1776129042147,-500.0,0.00010298,2]
[420474104,1776129042159,-525.23722444,0.00010298,2]
[420474105,1776129042168,-500.0,0.00010298,2]
[420474106,1776129042200,-500.0,0.00010298,2]
[420474107,1776129042211,-500.0,0.00010298,2]
[420474108,1776129042221,-500.0,0.00010298,2]
[420474109,1776129042232,-28307.67869241,0.00010299,2]
[420474110,1776129042320,153.62804204,0.00010298,30]
[420474111,1776129043161,153.62804204,0.00010299,30]
[420474123,1776129043646,-1434.60156923,0.00010299,2]
[420474124,1776129043946,-446.60285459,0.00010299,2]
[420474126,1776129044412,153.62804204,0.00010299,30]
[420474134,1776129045725,153.62804204,0.00013996,30]
[420474143,1776129046870,-184.62356645,0.00010298,2]
[420474144,1776129046898,-500.0,0.00010298,2]
[420474145,1776129046917,-289.38301842,0.00010298,2]
[420474146,1776129046931,-141654.26098207,0.00010299,2]
[420474157,1776129047875,-16291.57296323,0.00010299,2]
[420474158,1776129047919,-416.54920533,0.00010299,2]
[420474159,1776129048039,-8361.58420037,0.00010299,2]
[420474160,1776129121169,300.0,0.00010298,2]
[420474161,1776129121770,150.0,0.00010298,2]
[420474162,1776129125363,500.0,0.00010298,2]
[420474163,1776129125487,500.0,0.00010298,2]
[420474164,1776129125570,299.83572756,0.00010298,2]
[420474165,1776129132153,183.0,0.00010299,2]
[420474166,1776129136711,500.0,0.00010298,2]
[420474167,1776129136773,500.0,0.00010298,2]
[420474168,1776129136831,500.0,0.00010298,2]
[420474169,1776129136903,500.0,0.00010298,2]
[420474170,1776129136949,500.0,0.00010298,2]
[420474171,1776129137004,500.0,0.00010298,2]
[420474172,1776129137053,500.0,0.00010298,2]
[420474173,1776129137149,500.0,0.00010298,2]
[420474174,1776129137193,500.0,0.00010298,2]
[420474175,1776129137283,500.0,0.00010298,2]
[420474176,1776129137338,500.0,0.00010298,2]
[420474177,1776129137381,500.0,0.00010298,2]
[420474178,1776129137446,500.0,0.00010298,2]
[420474179,1776129137536,500.0,0.00010298,2]
[420474180,1776129137583,500.0,0.00010298,2]
[420474181,1776129137640,500.0,0.00010298,2]
[420474182,1776129137764,67.17427244,0.00010298,2]
[420474183,1776129137805,432.82572756,0.00010298,2]
[420474184,1776129137879,500.0,0.00010298,2]
[420474185,1776129137933,500.0,0.00010298,2]
[420474186,1776129138041,500.0,0.00010298,2]
[420474187,1776129138095,500.0,0.00010298,2]
[420474188,1776129138183,500.0,0.00010298,2]
[420474189,1776129138277,500.0,0.00010298,2]
[420474190,1776129138361,500.0,0.00010298,2]
[420474191,1776129138420,536.65907245,0.00010298,2]
[420474192,1776129138483,500.0,0.00010298,2]
[420474193,1776129138532,500.0,0.00010298,2]
[420474194,1776129138602,500.0,0.00010298,2]
[420474195,1776129138642,500.0,0.00010298,2]
[420474196,1776129138765,500.0,0.00010298,2]
[420474197,1776129138987,500.0,0.00010298,2]
[420474198,1776129152142,500.0,0.00010298,2]
[420474199,1776129152202,500.0,0.00010298,2]
[420474200,1776129152266,500.0,0.00010298,2]
[420474201,1776129152309,500.0,0.00010298,2]
[420474202,1776129152371,500.0,0.00010298,2]
[420474203,1776129152461,30.52519999,0.00010298,2]
[420474204,1776129152491,469.47480001,0.00010298,2]
[420474205,1776129152567,500.0,0.00010298,2]
[420474206,1776129154177,500.0,0.00010298,2]
[420474207,1776129154249,500.0,0.00010298,2]
[420474208,1776129154357,500.0,0.00010298,2]
[420474209,1776129154407,500.0,0.00010298,2]
[420474210,1776129154456,536.65907245,0.00010298,2]
[420474211,1776129154536,500.0,0.00010298,2]
[420474212,1776129154655,500.0,0.00010298,2]
[420474213,1776129154827,500.0,0.00010298,2]
[420474214,1776129154969,500.0,0.00010298,2]
[420474215,1776129155029,500.0,0.00010298,2]
[420474216,1776129155070,500.0,0.00010298,2]
[420474217,1776129155482,500.0,0.00010298,2]
[420474218,1776129159544,161.3,9.701e-05,2]
[420474219,1776129160222,273.73368273,0.00010298,2]
[420474220,1776129160747,500.0,0.00010284,2]
[420474221,1776129167262,500.0,0.00010298,2]
[420474222,1776129167318,517.96504779,0.00010298,2]
[420474223,1776129173517,200.0,9.667e-05,2]
[420474225,1776129188308,216.8192085,0.00010199,2]
[420474226,1776129188392,1500.0,9.667e-05,2]
[420474227,1776129188493,500.0,0.00010298,2]
[420474228,1776129188624,500.0,0.00010298,2]
[420474229,1776129188675,485.45503785,0.00010298,2]
[420474230,1776129192493,173.0,0.00010299,2]
[420474231,1776129197411,200.0,0.00010298,2]
[420474232,1776129232805,500.12779456,0.00010298,2]
[420474233,1776129236045,212.93084666,0.00010298,2]
[420474234,1776129245843,300.0,0.00010298,2]
[420474235,1776129245925,165.3,7.738e-05,2]
[420474236,1776129248160,159.0,0.00010299,2]
[420474237,1776129254837,-2108.78911835,0.00010299,2]
[420474238,1776129254856,-10000.01,0.00010299,2]
[420474239,1776129254885,-10000.01,0.00010299,2]
[420474240,1776129254917,-10000.01,0.00010299,2]
[420474241,1776129255013,-10000.01,0.00010299,2]
[420474242,1776129255031,-10000.01,0.00010299,2]
[420474243,1776129257090,-10000.01,0.00010299,2]
[420474244,1776129257113,-10000.01,0.00010299,2]
[420474245,1776129257129,-10000.01,0.00010299,2]
[420474246,1776129257162,-10000.01,0.00010299,2]
[420474247,1776129259531,-10000.01,0.00010299,2]
[420474248,1776129259663,-10000.01,0.00010299,2]
[420474249,1776129259773,-10000.01,0.00010299,2]
[420474250,1776129260009,-10000.01,0.00010299,2]
[420474251,1776129260112,-10000.01,0.00010299,2]
[420474252,1776129260227,-10000.01,0.00010299,2]
[420474253,1776129302370,1200.0,0.00010298,2]
[420474254,1776129313907,153.674643,0.000102,2]
[420474257,1776129381532,2500.0,0.000102,2]
[420474258,1776129384109,2000.0,9.803e-05,2]
[420474259,1776129421447,300.0,0.00010298,2]
[420474260,1776129427278,578.20924308,0.00010299,2]
[420474261,1776129430556,209.40437684,0.00010299,2]
[420474262,1776129430771,500.0,0.00010299,2]
[420474263,1776129430808,721.12765535,0.00010299,2]
[420474264,1776129430860,1428.38747117,0.00010299,2]
[420474265,1776129431192,409.20661056,0.00010299,2]
[420474266,1776129431235,9142.96125491,0.00010299,2]
[420474267,1776129431776,200.0,0.00010299,2]
[420474268,1776129433709,-657.04874509,0.00010299,2]
[420474269,1776129433735,-10000.01,0.00010299,2]
[420474270,1776129433865,-10000.01,0.00010299,2]
[420474271,1776129433954,-10000.01,0.00010299,2]
[420474272,1776129436078,500.0,9.696e-05,2]
[420474273,1776129440335,-10000.01,0.00010299,2]
[420474274,1776129440360,-5095.34580019,0.00010299,2]
[420474275,1776129440371,-151.0,0.00010299,2]
[420474276,1776129440382,-150.0,0.00010299,2]
[420474277,1776129440397,-159.0,0.00010299,3]
[420474278,1776129440407,-500.0,0.00010299,2]
[420474279,1776129440417,-500.0,0.00010299,2]
[420474280,1776129440427,-500.0,0.00010299,2]
[420474281,1776129440439,-500.0,0.00010299,2]
[420474282,1776129440451,-470.67274204,0.00010299,2]
[420474283,1776129440461,-172.0,0.00010299,3]
[420474284,1776129446754,-151.0,0.00010299,2]
[420474285,1776129447229,174.61919141,0.00010299,2]
[420474286,1776129447840,743.50770149,0.00010299,2]
[420474287,1776129448169,500.0,0.00010299,2]
[420474288,1776129448767,500.0,0.00010299,2]
[420474289,1776129505137,10000.01,0.00010199,2]
[420474290,1776129519314,1865.313665,0.00010147,2]
[420474291,1776129689741,2464.85,9.995e-05,2]
[420474292,1776129690230,164.03,9.995e-05,2]
[420474293,1776129715685,1852.42,9.607e-05,2]
[420474294,1776129824830,188.11,9.552e-05,2]
[420474295,1776129859966,1414.6964,0.00010099,2]
[420474296,1776129865519,2500.0,0.00010099,2]
[420474297,1776130002348,1415.9036,0.00010099,2]
[420474298,1776130002450,1084.0964,0.00010099,2]
[420474299,1776130045514,200.0,9.8e-05,3]
[420474300,1776130047647,500.0,9.9e-05,3]
[420474301,1776130049775,800.0,0.0001,3]
[420474302,1776130061273,7415.9136,0.00010099,2]
[420474303,1776130061309,10000.01,0.00010099,2]
[420474304,1776130061339,10000.01,0.00010099,2]
[420474305,1776130061379,453098.37231669,0.00010099,2]
[420474306,1776130061420,80000.0,0.00010099,2]
[420474307,1776130125033,166.66,9.598e-05,2]
[420474308,1776130125328,166.66,9.915e-05,2]
[420474309,1776130145116,228.0,9.915e-05,3]
[420474310,1776130147805,167.02534297,9.999e-05,2]
[420474311,1776130193070,-167.02534295,0.00010049,2]
[420474312,1776130201168,300.0,0.00010098,2]
[420474313,1776130201223,1200.0,0.00010098,2]
[420474314,1776130203099,150.0,0.00010098,2]
[420474315,1776130206461,220.0,0.00010099,2]
[420474316,1776130207447,166.0,0.00010099,2]
[420474317,1776130209171,-4180.5694421,0.00010099,2]
[420474318,1776130209282,-10000.01,0.00010099,2]
[420474319,1776130209325,-10000.01,0.00010099,2]
[420474320,1776130212043,-10000.01,0.00010099,2]
[420474321,1776130214489,-10000.01,0.00010099,2]
[420474322,1776130214525,-10000.01,0.00010099,2]
[420474323,1776130214634,-10000.01,0.00010099,2]
[420474324,1776130214855,-10000.01,0.00010099,2]
[420474325,1776130215038,-10000.01,0.00010099,2]
[420474326,1776130215167,-10000.01,0.00010099,2]
[420474327,1776130225563,500.0,0.00010098,2]
[420474328,1776130225623,500.0,0.00010098,2]
[420474329,1776130225721,500.0,0.00010098,2]
[420474330,1776130225791,500.0,0.00010098,2]
[420474331,1776130225940,389.25776303,0.00010098,2]
[420474332,1776130231813,-2279.77003804,0.00010099,2]
[420474336,1776130231825,-1486.23219409,0.00010099,2]
[420474342,1776130232172,-6108.63899614,0.00010099,2]
[420474344,1776130232198,-6176.36937548,0.00010099,2]
[420474346,1776130232216,-1249.39039257,0.00010099,2]
[420474348,1776130232267,-500.0,0.00010099,2]
[420474351,1776130232339,-797.59445327,0.00010099,2]
[420474353,1776130232360,-765.71157577,0.00010099,2]
[420474355,1776130232382,-1148.76047939,0.00010099,2]
[420474358,1776130232401,-1322.37552332,0.00010099,2]
[420474359,1776130232416,-1337.70986208,0.00010099,2]
[420474362,1776130232456,-798.27907882,0.00010099,2]
[420474364,1776130232475,-276517.36232589,0.00010099,2]
[420474373,1776130234566,251.35560466,0.00010098,2]
[420474377,1776130238570,-307.24199876,0.00010099,2]
[420474379,1776130238604,-2592.62594964,0.00010099,2]
[420474381,1776130238624,-1049.53799999,0.00010099,2]
[420474384,1776130238650,-598.26313241,0.00010099,2]
[420474386,1776130238667,-20060.49647241,0.00010099,2]
[420474388,1776130238685,-579.78867862,0.00010099,2]
[420474390,1776130238723,-57783.91705371,0.00010099,2]
[420474392,1776130238744,-5194.8976806,0.00010099,2]
[420474425,1776130240595,-6936.0,0.00010099,2]
[420474426,1776130240696,150.0,0.00012697,30]
[420474427,1776130240950,-1376.44388638,0.00010099,2]
[420474429,1776130240966,-426.74354969,0.00010099,2]
[420474440,1776130246240,-4772.49896325,0.00010099,2]
[420474441,1776130246256,-4107.24353813,0.00010099,2]
[420474442,1776130246273,-10667.91710175,0.00010099,2]
[420474443,1776130246302,-7730.4918908,0.00010099,2]
[420474444,1776130246314,-2716.35119114,0.00010099,2]
[420474445,1776130246326,-3143.55745,0.00010099,2]
[420474446,1776130246345,-705.9056017,0.00010099,2]
[420474447,1776130246357,-259.41954,0.00010099,2]
[420474448,1776130246370,-276.99182424,0.00010099,2]
[420474449,1776130246390,-1195.9267636,0.00010099,2]
[420474450,1776130246401,-370.45,0.00010099,2]
[420474451,1776130246425,-245377.39619754,0.00010099,2]
[420474454,1776130246490,-678.09499637,0.00010099,2]
[420474455,1776130246516,-601.96490377,0.00010099,2]
[420474456,1776130252227,231.32873108,9.784e-05,2]
[420474457,1776130262138,300.0,0.00010098,2]
[420474458,1776130265852,157.55,9.448e-05,2]
[420474459,1776130269413,209.0,0.00010099,2]
[420474461,1776130283332,500.0,0.00010098,2]
[420474462,1776130283481,500.0,0.00010098,2]
[420474463,1776130283818,500.0,0.00010098,2]
[420474464,1776130284156,563.36923508,0.00010098,2]
[420474465,1776130285185,275.07413173,0.00010098,2]
[420474466,1776130287901,2894.353,0.00010098,2]
[420474467,1776130287957,195.763,0.00010098,2]
[420474468,1776130288480,500.0,0.00010098,2]
[420474469,1776130288655,500.0,0.00010098,2]
[420474470,1776130288746,32.95853442,0.00010098,2]
[420474471,1776130288775,119.47360107,0.00010098,2]
[420474472,1776130303038,500.0,0.00010098,2]
[420474473,1776130303098,500.0,0.00010098,2]
[420474474,1776130303142,500.0,0.00010098,2]
[420474475,1776130303199,500.0,0.00010098,2]
[420474476,1776130303254,500.0,0.00010098,2]
[420474477,1776130303321,500.0,0.00010098,2]
[420474478,1776130303451,180.32311568,0.00010098,2]
[420474479,1776130312956,151.06019635,0.00010098,2]
[420474480,1776130321811,201.48043668,0.00010098,2]
[420474481,1776130321870,500.0,0.00010098,2]
[420474482,1776130326788,198.0,0.00010099,2]
[420474483,1776130329182,300.0,0.00010098,2]
[420474484,1776130329788,296.2,0.0001,10]
[420474485,1776130330696,150.0,0.00010098,2]
[420474486,1776130334200,1049.14,9.485e-05,2]
[420474487,1776130342009,279.96004274,0.00010098,2]
[420474488,1776130347634,2125.81,0.0001,2]
[420474489,1776130381650,300.0,0.00010098,2]
[420474490,1776130381713,150.0,0.00010098,2]
[420474491,1776130391634,271.0,0.00010099,2]
[420474492,1776130397793,166.0,0.00010099,2]
[420474493,1776130404289,161.86,0.00010099,2]
[420474494,1776130434023,399.70260748,9.999e-05,2]
[420474495,1776130434066,8123.18959252,9.999e-05,2]
[420474496,1776130436238,150.23345631,0.0001,4]
[420474497,1776130448781,257.0,0.00010099,2]
[420474498,1776130470958,1000.0,9.999e-05,2]
[420474499,1776130489301,469.58695117,0.00010093,2]
[420474500,1776130489328,2030.41304883,0.00010093,2]
[420474501,1776130501207,300.0,0.00010098,2]
[420474502,1776130501268,1200.0,0.00010098,2]